[Event "Titled Tuesday Blitz August 3 2021"]
[White "Florescu, Codrut-Constantin"]
[Black "Buscar, Michael"]
[WhiteFideId "1202200"]
[BlackFideId "2603616"]
[WhiteElo "2243"]
[BlackElo "2010"]
[Result "1-0"]
[Round "11"]
[TimeControl "180+1"]
[Date "2021.08.03"]
[WhiteClock "0:00:26"]
[BlackClock "0:00:07"]

1. d4 {[%clk 0:03:00]}  Nf6 {[%clk 0:02:58]} 2. c4 {[%clk 0:03:00]}  e6 {[%clk 0:02:59]} 3. Nf3 {[%clk 0:03:00]}  d5 {[%clk 0:02:57]} 4. Bg5 {[%clk 0:03:00]}  c6 {[%clk 0:02:56]} 5. e3 {[%clk 0:03:00]}  Be7 {[%clk 0:02:56]} 6. Nc3 {[%clk 0:02:59]}  Nbd7 {[%clk 0:02:56]} 7. Qc2 {[%clk 0:02:59]}  O-O {[%clk 0:02:56]} 8. Rd1 {[%clk 0:02:56]}  b6 {[%clk 0:02:49]} 9. cxd5 {[%clk 0:02:56]}  cxd5 {[%clk 0:02:49]} 10. Bd3 {[%clk 0:02:54]}  Bb7 {[%clk 0:02:45]} 11. O-O {[%clk 0:02:53]}  Qc8 {[%clk 0:02:45]} 12. Qe2 {[%clk 0:02:51]}  a5 {[%clk 0:02:32]} 13. Bxf6 {[%clk 0:02:47]}  Nxf6 {[%clk 0:02:29]} 14. Ne5 {[%clk 0:02:46]}  Ba6 {[%clk 0:02:26]} 15. Nb5 {[%clk 0:02:45]}  Qb7 {[%clk 0:02:20]} 16. Rc1 {[%clk 0:02:40]}  Rfc8 {[%clk 0:02:16]} 17. a4 {[%clk 0:02:32]}  Nd7 {[%clk 0:02:10]} 18. Bxh7+ {[%clk 0:02:23]}  Kxh7 {[%clk 0:02:08]} 19. Qh5+ {[%clk 0:02:22]}  Kg8 {[%clk 0:02:01]} 20. Qxf7+ {[%clk 0:02:21]}  Kh7 {[%clk 0:02:02]} 21. Qg6+ {[%clk 0:02:09]}  Kg8 {[%clk 0:02:02]} 22. Qxe6+ {[%clk 0:02:08]}  Kh7 {[%clk 0:01:56]} 23. Qxe7 {[%clk 0:02:05]}  Nxe5 {[%clk 0:01:52]} 24. Qxe5 {[%clk 0:02:05]}  Bxb5 {[%clk 0:01:46]} 25. axb5 {[%clk 0:02:02]}  Qf7 {[%clk 0:01:46]} 26. Rc6 {[%clk 0:01:52]}  a4 {[%clk 0:01:36]} 27. Rfc1 {[%clk 0:01:48]}  Re8 {[%clk 0:01:36]} 28. Qg3 {[%clk 0:01:43]}  a3 {[%clk 0:01:33]} 29. bxa3 {[%clk 0:01:43]}  Rxa3 {[%clk 0:01:32]} 30. Rxb6 {[%clk 0:01:43]}  Rc8 {[%clk 0:01:24]} 31. Rbc6 {[%clk 0:01:40]}  Rf8 {[%clk 0:01:14]} 32. h3 {[%clk 0:01:33]}  Ra2 {[%clk 0:01:13]} 33. R6c2 {[%clk 0:01:30]}  Ra3 {[%clk 0:01:05]} 34. Rb2 {[%clk 0:01:29]}  Qh5 {[%clk 0:00:53]} 35. b6 {[%clk 0:01:24]}  Ra6 {[%clk 0:00:53]} 36. Qg4 {[%clk 0:01:18]}  Qh6 {[%clk 0:00:50]} 37. Rc7 {[%clk 0:00:48]}  Rf6 {[%clk 0:00:29]} 38. b7 {[%clk 0:00:32]}  Rg6 {[%clk 0:00:25]} 39. b8=Q {[%clk 0:00:32]}  Ra1+ {[%clk 0:00:14]} 40. Rb1 {[%clk 0:00:30]}  Rxg4 {[%clk 0:00:14]} 41. hxg4 {[%clk 0:00:30]}  Ra6 {[%clk 0:00:12]} 42. Rc8 {[%clk 0:00:28]}  Qg5 {[%clk 0:00:07]} 43. Rh8+ {[%clk 0:00:27]}  Kg6 {[%clk 0:00:07]} 44. Qe8+ {[%clk 0:00:27]}  Kf6 {[%clk 0:00:07]} 45. Rf8# {[%clk 0:00:26]} 1-0


[Site "https://www.chess.com"]

[Event "Titled Tuesday Blitz August 3 2021"]
[White "Grachev, Boris"]
[Black "Rasulov, Vugar"]
[WhiteFideId "4129199"]
[BlackFideId "13402390"]
[WhiteElo "2595"]
[BlackElo "2553"]
[Result "0-1"]
[Round "11"]
[TimeControl "180+1"]
[Date "2021.08.03"]
[WhiteClock "0:00:04"]
[BlackClock "0:00:46"]

1. d4 {[%clk 0:03:00]}  Nf6 {[%clk 0:03:00]} 2. Bf4 {[%clk 0:03:00]}  c5 {[%clk 0:02:58]} 3. d5 {[%clk 0:03:01]}  d6 {[%clk 0:02:58]} 4. Nc3 {[%clk 0:03:00]}  a6 {[%clk 0:02:58]} 5. a4 {[%clk 0:02:59]}  g6 {[%clk 0:02:57]} 6. e4 {[%clk 0:02:57]}  Bg7 {[%clk 0:02:57]} 7. h3 {[%clk 0:02:58]}  O-O {[%clk 0:02:57]} 8. Nf3 {[%clk 0:02:58]}  Re8 {[%clk 0:02:54]} 9. Be2 {[%clk 0:02:57]}  e6 {[%clk 0:02:50]} 10. dxe6 {[%clk 0:02:50]}  Rxe6 {[%clk 0:02:50]} 11. O-O {[%clk 0:02:46]}  Nxe4 {[%clk 0:02:49]} 12. Nxe4 {[%clk 0:02:46]}  Rxe4 {[%clk 0:02:50]} 13. Bxd6 {[%clk 0:02:45]}  Rxe2 {[%clk 0:02:46]} 14. Qxe2 {[%clk 0:02:37]}  Qxd6 {[%clk 0:02:46]} 15. Rad1 {[%clk 0:02:36]}  Qf8 {[%clk 0:02:46]} 16. Rfe1 {[%clk 0:02:27]}  Nc6 {[%clk 0:02:43]} 17. c3 {[%clk 0:02:28]}  Be6 {[%clk 0:02:41]} 18. Ng5 {[%clk 0:02:28]}  Bb3 {[%clk 0:02:41]} 19. Rd7 {[%clk 0:02:27]}  h6 {[%clk 0:02:33]} 20. Ne4 {[%clk 0:02:23]}  b6 {[%clk 0:02:27]} 21. Rc7 {[%clk 0:02:12]}  Ne5 {[%clk 0:02:26]} 22. f4 {[%clk 0:02:04]}  Bc4 {[%clk 0:02:13]} 23. Qe3 {[%clk 0:01:53]}  Qd8 {[%clk 0:01:59]} 24. Rb7 {[%clk 0:01:53]}  Bd5 {[%clk 0:01:58]} 25. Rd1 {[%clk 0:01:52]}  Nc4 {[%clk 0:01:46]} 26. Qe2 {[%clk 0:01:32]}  Na5 {[%clk 0:01:42]} 27. Rxb6 {[%clk 0:01:21]}  Qxb6 {[%clk 0:01:41]} 28. Rxd5 {[%clk 0:01:22]}  c4+ {[%clk 0:01:30]} 29. Kh2 {[%clk 0:01:20]}  Rd8 {[%clk 0:01:25]} 30. Qf2 {[%clk 0:01:14]}  Qc7 {[%clk 0:01:19]} 31. Qc5 {[%clk 0:01:10]}  Qxc5 {[%clk 0:01:19]} 32. Rxc5 {[%clk 0:01:09]}  Nb3 {[%clk 0:01:12]} 33. Rxc4 {[%clk 0:01:08]}  Re8 {[%clk 0:01:12]} 34. Nd6 {[%clk 0:01:05]}  Re2 {[%clk 0:01:11]} 35. Rc7 {[%clk 0:01:00]}  Nd2 {[%clk 0:01:00]} 36. Nxf7 {[%clk 0:00:51]}  Nf1+ {[%clk 0:00:57]} 37. Kg1 {[%clk 0:00:50]}  Ne3 {[%clk 0:00:57]} 38. Nd8 {[%clk 0:00:38]}  Rxg2+ {[%clk 0:00:51]} 39. Kh1 {[%clk 0:00:39]}  Rxb2 {[%clk 0:00:52]} 40. Ne6 {[%clk 0:00:38]}  Bf6 {[%clk 0:00:51]} 41. Rc6 {[%clk 0:00:33]}  Kf7 {[%clk 0:00:50]} 42. Rxa6 {[%clk 0:00:22]}  Nf5 {[%clk 0:00:50]} 43. Kg1 {[%clk 0:00:12]}  Bxc3 {[%clk 0:00:50]} 44. Kf1 {[%clk 0:00:07]}  Ng3+ {[%clk 0:00:45]} 45. Kg1 {[%clk 0:00:07]}  Bf6 {[%clk 0:00:42]} 46. a5 {[%clk 0:00:05]}  Re2 {[%clk 0:00:42]} 47. f5 {[%clk 0:00:02]}  gxf5 {[%clk 0:00:39]} 48. Rb6 {[%clk 0:00:01]}  Rxe6 {[%clk 0:00:38]} 49. Rxe6 {[%clk 0:00:02]}  Kxe6 {[%clk 0:00:39]} 50. Kg2 {[%clk 0:00:02]}  Ne4 {[%clk 0:00:38]} 51. a6 {[%clk 0:00:03]}  Bd4 {[%clk 0:00:39]} 52. Kf3 {[%clk 0:00:04]}  Ke5 {[%clk 0:00:39]} 53. h4 {[%clk 0:00:04]}  Ba7 {[%clk 0:00:39]} 54. h5 {[%clk 0:00:03]}  Nc5 {[%clk 0:00:38]} 55. Ke3 {[%clk 0:00:03]}  Nxa6+ {[%clk 0:00:39]} 56. Kf3 {[%clk 0:00:04]}  Nc5 {[%clk 0:00:39]} 57. Kg3 {[%clk 0:00:04]}  Ne4+ {[%clk 0:00:40]} 58. Kh4 {[%clk 0:00:03]}  Nf6 {[%clk 0:00:40]} 59. Kg3 {[%clk 0:00:02]}  Nxh5+ {[%clk 0:00:41]} 60. Kh4 {[%clk 0:00:03]}  Nf6 {[%clk 0:00:42]} 61. Kg3 {[%clk 0:00:04]}  f4+ {[%clk 0:00:42]} 62. Kh4 {[%clk 0:00:02]}  Kf5 {[%clk 0:00:43]} 63. Kh3 {[%clk 0:00:02]}  f3 {[%clk 0:00:44]} 64. Kg3 {[%clk 0:00:02]}  f2 {[%clk 0:00:44]} 65. Kg2 {[%clk 0:00:03]}  Kf4 {[%clk 0:00:44]} 66. Kf1 {[%clk 0:00:03]}  h5 {[%clk 0:00:44]} 67. Kg2 {[%clk 0:00:02]}  h4 {[%clk 0:00:45]} 68. Kf1 {[%clk 0:00:03]}  h3 {[%clk 0:00:46]} 69. Ke2 {[%clk 0:00:04]}  h2 {[%clk 0:00:46]} 0-1


[Site "https://www.chess.com"]

[Event "Titled Tuesday Blitz August 3 2021"]
[White "Gunina, Valentina"]
[Black "Karttunen, Mika"]
[WhiteFideId "4167570"]
[BlackFideId "502081"]
[WhiteElo "2399"]
[BlackElo "2343"]
[Result "1-0"]
[Round "11"]
[TimeControl "180+1"]
[Date "2021.08.03"]
[WhiteClock "0:00:15"]
[BlackClock "0:00:01"]

1. d4 {[%clk 0:03:00]}  Nf6 {[%clk 0:02:59]} 2. c4 {[%clk 0:03:01]}  g6 {[%clk 0:02:59]} 3. Nc3 {[%clk 0:03:01]}  d5 {[%clk 0:03:00]} 4. cxd5 {[%clk 0:03:00]}  Nxd5 {[%clk 0:03:00]} 5. e4 {[%clk 0:03:01]}  Nxc3 {[%clk 0:03:00]} 6. bxc3 {[%clk 0:03:02]}  Bg7 {[%clk 0:03:01]} 7. Bc4 {[%clk 0:03:02]}  O-O {[%clk 0:02:59]} 8. Ne2 {[%clk 0:03:02]}  c5 {[%clk 0:02:59]} 9. O-O {[%clk 0:03:03]}  Qc7 {[%clk 0:02:57]} 10. Bf4 {[%clk 0:03:02]}  Qa5 {[%clk 0:02:29]} 11. Rb1 {[%clk 0:02:56]}  a6 {[%clk 0:02:29]} 12. Bd5 {[%clk 0:02:46]}  Nc6 {[%clk 0:02:25]} 13. Qb3 {[%clk 0:02:33]}  e5 {[%clk 0:01:37]} 14. dxe5 {[%clk 0:02:30]}  Nxe5 {[%clk 0:01:37]} 15. Bxe5 {[%clk 0:02:28]}  Bxe5 {[%clk 0:01:36]} 16. f4 {[%clk 0:02:29]}  Bg7 {[%clk 0:01:19]} 17. h3 {[%clk 0:02:29]}  Rb8 {[%clk 0:00:59]} 18. Qb6 {[%clk 0:02:22]}  Qxb6 {[%clk 0:00:55]} 19. Rxb6 {[%clk 0:02:22]}  Re8 {[%clk 0:00:44]} 20. Rfb1 {[%clk 0:02:08]}  Ra8 {[%clk 0:00:44]} 21. Kf2 {[%clk 0:02:05]}  Ra7 {[%clk 0:00:39]} 22. Kf3 {[%clk 0:02:05]}  Be6 {[%clk 0:00:38]} 23. Bxe6 {[%clk 0:02:02]}  fxe6 {[%clk 0:00:29]} 24. Rxb7 {[%clk 0:02:02]}  Rxb7 {[%clk 0:00:30]} 25. Rxb7 {[%clk 0:02:02]}  e5 {[%clk 0:00:31]} 26. f5 {[%clk 0:01:49]}  gxf5 {[%clk 0:00:30]} 27. exf5 {[%clk 0:01:49]}  e4+ {[%clk 0:00:31]} 28. Kf2 {[%clk 0:01:50]}  Be5 {[%clk 0:00:30]} 29. Rb6 {[%clk 0:01:46]}  Rd8 {[%clk 0:00:29]} 30. Ke3 {[%clk 0:01:42]}  Bxc3 {[%clk 0:00:23]} 31. Kxe4 {[%clk 0:01:29]}  Bd2 {[%clk 0:00:18]} 32. Rxa6 {[%clk 0:01:25]}  Rc8 {[%clk 0:00:18]} 33. Kd3 {[%clk 0:01:24]}  Be1 {[%clk 0:00:18]} 34. Kc4 {[%clk 0:01:21]}  Re8 {[%clk 0:00:18]} 35. Re6 {[%clk 0:01:21]}  Ra8 {[%clk 0:00:17]} 36. Kxc5 {[%clk 0:01:16]}  Rxa2 {[%clk 0:00:17]} 37. Kc4 {[%clk 0:01:09]}  Bh4 {[%clk 0:00:16]} 38. g3 {[%clk 0:01:05]}  Bg5 {[%clk 0:00:16]} 39. h4 {[%clk 0:01:05]}  Bd2 {[%clk 0:00:15]} 40. Kb3 {[%clk 0:01:04]}  Ra5 {[%clk 0:00:15]} 41. Kc2 {[%clk 0:01:00]}  Bb4 {[%clk 0:00:13]} 42. Nd4 {[%clk 0:00:58]}  Rc5+ {[%clk 0:00:10]} 43. Kd3 {[%clk 0:00:57]}  Rc3+ {[%clk 0:00:10]} 44. Ke4 {[%clk 0:00:57]}  Rxg3 {[%clk 0:00:10]} 45. Rb6 {[%clk 0:00:51]}  Bc3 {[%clk 0:00:10]} 46. Ne6 {[%clk 0:00:49]}  Bf6 {[%clk 0:00:07]} 47. Rb8+ {[%clk 0:00:44]}  Kf7 {[%clk 0:00:07]} 48. Rb7+ {[%clk 0:00:44]}  Ke8 {[%clk 0:00:07]} 49. Nc7+ {[%clk 0:00:20]}  Kd8 {[%clk 0:00:03]} 50. Nd5 {[%clk 0:00:19]}  Bxh4 {[%clk 0:00:03]} 51. Rxh7 {[%clk 0:00:19]}  Rg4+ {[%clk 0:00:02]} 52. Kf3 {[%clk 0:00:15]}  Ra4 {[%clk 0:00:01]} 53. Nf4 {[%clk 0:00:15]} 1-0


[Site "https://www.chess.com"]

[Event "Titled Tuesday Blitz August 3 2021"]
[White "Hansen, Sune Berg"]
[Black "Lee, Linden"]
[WhiteFideId "1400266"]
[BlackFideId "30941830"]
[WhiteElo "2650"]
[BlackElo "2508"]
[Result "1-0"]
[Round "11"]
[TimeControl "180+1"]
[Date "2021.08.03"]
[WhiteClock "0:00:12"]
[BlackClock "0:00:26"]

1. e4 {[%clk 0:02:57]}  c6 {[%clk 0:02:59]} 2. d4 {[%clk 0:02:55]}  d5 {[%clk 0:02:59]} 3. e5 {[%clk 0:02:55]}  Bf5 {[%clk 0:02:58]} 4. Nf3 {[%clk 0:02:56]}  e6 {[%clk 0:02:58]} 5. Be2 {[%clk 0:02:57]}  Nd7 {[%clk 0:02:59]} 6. O-O {[%clk 0:02:56]}  c5 {[%clk 0:02:59]} 7. Nbd2 {[%clk 0:02:53]}  Ne7 {[%clk 0:02:56]} 8. c4 {[%clk 0:02:48]}  Bg6 {[%clk 0:02:52]} 9. Re1 {[%clk 0:02:41]}  cxd4 {[%clk 0:02:51]} 10. Nxd4 {[%clk 0:02:33]}  Nc6 {[%clk 0:02:44]} 11. Nxc6 {[%clk 0:02:03]}  bxc6 {[%clk 0:02:43]} 12. Nf3 {[%clk 0:01:45]}  Bc5 {[%clk 0:02:42]} 13. Bd3 {[%clk 0:01:39]}  O-O {[%clk 0:02:37]} 14. Be3 {[%clk 0:01:29]}  Qb6 {[%clk 0:02:29]} 15. cxd5 {[%clk 0:01:28]}  cxd5 {[%clk 0:02:29]} 16. Bxc5 {[%clk 0:01:24]}  Nxc5 {[%clk 0:02:28]} 17. Bxg6 {[%clk 0:01:21]}  hxg6 {[%clk 0:02:27]} 18. Ng5 {[%clk 0:01:08]}  Qxb2 {[%clk 0:01:58]} 19. Re2 {[%clk 0:00:34]}  Qb6 {[%clk 0:01:49]} 20. Rb1 {[%clk 0:00:33]}  Qd8 {[%clk 0:01:49]} 21. h4 {[%clk 0:00:30]}  Rb8 {[%clk 0:01:47]} 22. Rc1 {[%clk 0:00:29]}  Qb6 {[%clk 0:01:45]} 23. Qd4 {[%clk 0:00:26]}  Rbc8 {[%clk 0:01:29]} 24. Rce1 {[%clk 0:00:17]}  Nd7 {[%clk 0:01:22]} 25. Qg4 {[%clk 0:00:17]}  Rc4 {[%clk 0:01:21]} 26. Qh3 {[%clk 0:00:17]}  Qd4 {[%clk 0:01:16]} 27. h5 {[%clk 0:00:14]}  gxh5 {[%clk 0:01:15]} 28. Re4 {[%clk 0:00:12]}  dxe4 {[%clk 0:01:01]} 29. Qxh5 {[%clk 0:00:12]}  Rfc8 {[%clk 0:00:55]} 30. Qxf7+ {[%clk 0:00:12]}  Kh8 {[%clk 0:00:55]} 31. Qh5+ {[%clk 0:00:12]}  Kg8 {[%clk 0:00:55]} 32. Qh7+ {[%clk 0:00:13]}  Kf8 {[%clk 0:00:55]} 33. Nxe6+ {[%clk 0:00:13]}  Ke7 {[%clk 0:00:55]} 34. Nxd4 {[%clk 0:00:14]}  Rxd4 {[%clk 0:00:54]} 35. Rxe4 {[%clk 0:00:14]}  Rd1+ {[%clk 0:00:51]} 36. Kh2 {[%clk 0:00:14]}  Kf7 {[%clk 0:00:45]} 37. Rf4+ {[%clk 0:00:14]}  Ke6 {[%clk 0:00:45]} 38. Qxg7 {[%clk 0:00:14]}  Nxe5 {[%clk 0:00:26]} 39. Re4 {[%clk 0:00:12]}  Rc5 {[%clk 0:00:25]} 40. Rxe5+ {[%clk 0:00:12]}  Rxe5 {[%clk 0:00:25]} 41. Qg4+ {[%clk 0:00:13]}  Kf6 {[%clk 0:00:25]} 42. Qxd1 {[%clk 0:00:13]}  Rh5+ {[%clk 0:00:26]} 43. Qxh5 {[%clk 0:00:12]} 1-0


[Site "https://www.chess.com"]

[Event "Titled Tuesday Blitz August 3 2021"]
[White "Heinemann, Josefine"]
[Black "Manukian, Artak"]
[WhiteFideId "12900460"]
[BlackFideId "13301373"]
[WhiteElo "2300"]
[BlackElo "2363"]
[Result "1-0"]
[Round "11"]
[TimeControl "180+1"]
[Date "2021.08.03"]
[WhiteClock "0:00:40"]
[BlackClock "0:00:01"]

1. Nf3 {[%clk 0:03:00]}  c6 {[%clk 0:02:41]} 2. g3 {[%clk 0:02:55]}  d5 {[%clk 0:02:41]} 3. Bg2 {[%clk 0:02:56]}  Bg4 {[%clk 0:02:39]} 4. O-O {[%clk 0:02:54]}  Nd7 {[%clk 0:02:39]} 5. d4 {[%clk 0:02:54]}  e6 {[%clk 0:02:37]} 6. h3 {[%clk 0:02:51]}  Bh5 {[%clk 0:02:37]} 7. Nbd2 {[%clk 0:02:50]}  Bd6 {[%clk 0:02:36]} 8. e4 {[%clk 0:02:49]}  dxe4 {[%clk 0:02:35]} 9. Nxe4 {[%clk 0:02:50]}  Be7 {[%clk 0:02:36]} 10. Bf4 {[%clk 0:02:48]}  Ndf6 {[%clk 0:02:33]} 11. Nc5 {[%clk 0:02:39]}  Bxc5 {[%clk 0:02:31]} 12. dxc5 {[%clk 0:02:40]}  Qxd1 {[%clk 0:02:30]} 13. Raxd1 {[%clk 0:02:40]}  Nd5 {[%clk 0:02:30]} 14. Bc1 {[%clk 0:02:21]}  O-O-O {[%clk 0:02:24]} 15. c4 {[%clk 0:02:20]}  Nc7 {[%clk 0:02:22]} 16. Rxd8+ {[%clk 0:02:19]}  Kxd8 {[%clk 0:02:22]} 17. Ne5 {[%clk 0:02:19]}  f6 {[%clk 0:02:16]} 18. Nd3 {[%clk 0:02:15]}  Ne7 {[%clk 0:02:08]} 19. Nf4 {[%clk 0:02:15]}  Bf7 {[%clk 0:02:07]} 20. Rd1+ {[%clk 0:02:14]}  Kc8 {[%clk 0:02:06]} 21. b3 {[%clk 0:02:12]}  Rd8 {[%clk 0:01:50]} 22. Rxd8+ {[%clk 0:02:11]}  Kxd8 {[%clk 0:01:51]} 23. g4 {[%clk 0:02:11]}  e5 {[%clk 0:01:48]} 24. Ne2 {[%clk 0:02:04]}  Bg6 {[%clk 0:01:36]} 25. Nc3 {[%clk 0:02:01]}  Na6 {[%clk 0:01:26]} 26. Ba3 {[%clk 0:01:57]}  Kd7 {[%clk 0:01:18]} 27. h4 {[%clk 0:01:55]}  h6 {[%clk 0:01:13]} 28. h5 {[%clk 0:01:55]}  Bc2 {[%clk 0:01:10]} 29. Kf1 {[%clk 0:01:27]}  Nc7 {[%clk 0:01:06]} 30. Bc1 {[%clk 0:01:16]}  Ne6 {[%clk 0:01:05]} 31. Be3 {[%clk 0:01:15]}  f5 {[%clk 0:00:58]} 32. gxf5 {[%clk 0:01:11]}  Nxf5 {[%clk 0:00:59]} 33. Be4 {[%clk 0:00:55]}  Bxe4 {[%clk 0:00:47]} 34. Nxe4 {[%clk 0:00:56]}  Nxe3+ {[%clk 0:00:15]} 35. fxe3 {[%clk 0:00:57]}  Nf8 {[%clk 0:00:09]} 36. Ke2 {[%clk 0:00:56]}  Nh7 {[%clk 0:00:08]} 37. Nd6 {[%clk 0:00:50]}  b6 {[%clk 0:00:06]} 38. Nf5 {[%clk 0:00:50]}  bxc5 {[%clk 0:00:04]} 39. Nxg7 {[%clk 0:00:50]}  Nf6 {[%clk 0:00:04]} 40. Nf5 {[%clk 0:00:50]}  Nxh5 {[%clk 0:00:04]} 41. Nxh6 {[%clk 0:00:50]}  Nf6 {[%clk 0:00:05]} 42. Nf5 {[%clk 0:00:46]}  Ne4 {[%clk 0:00:04]} 43. Kd3 {[%clk 0:00:45]}  Nf2+ {[%clk 0:00:04]} 44. Kc2 {[%clk 0:00:44]}  Ke6 {[%clk 0:00:03]} 45. Ng3 {[%clk 0:00:44]}  e4 {[%clk 0:00:02]} 46. Kd2 {[%clk 0:00:43]}  Ke5 {[%clk 0:00:02]} 47. Ne2 {[%clk 0:00:42]}  Nd3 {[%clk 0:00:02]} 48. Nc3 {[%clk 0:00:41]}  Nb4 {[%clk 0:00:02]} 49. a3 {[%clk 0:00:40]}  Na6 {[%clk 0:00:01]} 50. Na4 {[%clk 0:00:40]} 1-0


[Site "https://www.chess.com"]

[Event "Titled Tuesday Blitz August 3 2021"]
[White "Ibrahimli, Murad"]
[Black "Khoroshev, Nikita"]
[WhiteFideId "13410229"]
[BlackFideId "14200287"]
[WhiteElo "2109"]
[BlackElo "2328"]
[Result "1-0"]
[Round "11"]
[TimeControl "180+1"]
[Date "2021.08.03"]
[WhiteClock "0:00:16"]
[BlackClock "0:00:02"]

1. Nf3 {[%clk 0:03:00]}  Nf6 {[%clk 0:02:59]} 2. g3 {[%clk 0:02:57]}  b6 {[%clk 0:02:59]} 3. Bg2 {[%clk 0:02:57]}  Bb7 {[%clk 0:03:00]} 4. O-O {[%clk 0:02:57]}  e6 {[%clk 0:03:00]} 5. c4 {[%clk 0:02:56]}  Be7 {[%clk 0:03:00]} 6. Nc3 {[%clk 0:02:56]}  O-O {[%clk 0:03:00]} 7. d4 {[%clk 0:02:52]}  d5 {[%clk 0:03:00]} 8. Ne5 {[%clk 0:02:50]}  Na6 {[%clk 0:02:51]} 9. cxd5 {[%clk 0:02:48]}  exd5 {[%clk 0:02:49]} 10. Bf4 {[%clk 0:02:48]}  c5 {[%clk 0:02:48]} 11. Rc1 {[%clk 0:02:47]}  Ne4 {[%clk 0:02:35]} 12. Nxe4 {[%clk 0:02:42]}  dxe4 {[%clk 0:02:36]} 13. dxc5 {[%clk 0:02:42]}  Nxc5 {[%clk 0:02:35]} 14. Qc2 {[%clk 0:02:41]}  f6 {[%clk 0:02:20]} 15. Nc4 {[%clk 0:01:59]}  Rc8 {[%clk 0:02:07]} 16. Rfd1 {[%clk 0:01:58]}  Qe8 {[%clk 0:02:04]} 17. Nd6 {[%clk 0:01:47]}  Bxd6 {[%clk 0:01:44]} 18. Bxd6 {[%clk 0:01:48]}  Rf7 {[%clk 0:01:42]} 19. Bh3 {[%clk 0:01:33]}  f5 {[%clk 0:01:33]} 20. Qb1 {[%clk 0:01:26]}  e3 {[%clk 0:01:32]} 21. f3 {[%clk 0:01:23]}  Qe6 {[%clk 0:00:50]} 22. b4 {[%clk 0:01:18]}  Na6 {[%clk 0:00:44]} 23. Rxc8+ {[%clk 0:01:13]}  Bxc8 {[%clk 0:00:44]} 24. Bf4 {[%clk 0:01:08]}  h6 {[%clk 0:00:31]} 25. Rd3 {[%clk 0:00:58]}  Qc4 {[%clk 0:00:28]} 26. a3 {[%clk 0:00:52]}  g5 {[%clk 0:00:16]} 27. Bxe3 {[%clk 0:00:45]}  g4 {[%clk 0:00:17]} 28. fxg4 {[%clk 0:00:41]}  fxg4 {[%clk 0:00:18]} 29. Bg2 {[%clk 0:00:33]}  Bf5 {[%clk 0:00:17]} 30. Rd8+ {[%clk 0:00:33]}  Kh7 {[%clk 0:00:17]} 31. Qb2 {[%clk 0:00:33]}  Rg7 {[%clk 0:00:14]} 32. Rd6 {[%clk 0:00:22]}  Bg6 {[%clk 0:00:12]} 33. Bd5 {[%clk 0:00:23]}  Qc7 {[%clk 0:00:10]} 34. Bf4 {[%clk 0:00:23]}  Qe7 {[%clk 0:00:09]} 35. Qe5 {[%clk 0:00:20]}  Qxe5 {[%clk 0:00:08]} 36. Bxe5 {[%clk 0:00:21]}  Re7 {[%clk 0:00:08]} 37. Bf4 {[%clk 0:00:20]}  Nc7 {[%clk 0:00:05]} 38. Bc4 {[%clk 0:00:19]}  h5 {[%clk 0:00:04]} 39. Kf2 {[%clk 0:00:18]}  b5 {[%clk 0:00:04]} 40. Bb3 {[%clk 0:00:16]}  a6 {[%clk 0:00:03]} 41. Rc6 {[%clk 0:00:16]}  Bf5 {[%clk 0:00:02]} 42. Rxc7 {[%clk 0:00:16]} 1-0


[Site "https://www.chess.com"]

[Event "Titled Tuesday Blitz August 3 2021"]
[White "Ilyasli, Ughur"]
[Black "Sarkar, Justin"]
[WhiteFideId "13416197"]
[BlackFideId "2010011"]
[WhiteElo "2051"]
[BlackElo "2072"]
[Result "0-1"]
[Round "11"]
[TimeControl "180+1"]
[Date "2021.08.03"]
[WhiteClock "0:00:03"]
[BlackClock "0:00:01"]

1. e4 {[%clk 0:03:00]}  e5 {[%clk 0:02:57]} 2. Nf3 {[%clk 0:03:01]}  Nc6 {[%clk 0:02:56]} 3. Bb5 {[%clk 0:03:01]}  a6 {[%clk 0:02:56]} 4. Ba4 {[%clk 0:03:01]}  Nf6 {[%clk 0:02:56]} 5. O-O {[%clk 0:03:02]}  Be7 {[%clk 0:02:55]} 6. Re1 {[%clk 0:03:01]}  b5 {[%clk 0:02:55]} 7. Bb3 {[%clk 0:03:02]}  d6 {[%clk 0:02:55]} 8. c3 {[%clk 0:03:02]}  O-O {[%clk 0:02:52]} 9. h3 {[%clk 0:03:03]}  Na5 {[%clk 0:02:44]} 10. Bc2 {[%clk 0:03:02]}  c5 {[%clk 0:02:43]} 11. d4 {[%clk 0:03:00]}  Qc7 {[%clk 0:02:40]} 12. Nbd2 {[%clk 0:02:56]}  cxd4 {[%clk 0:02:36]} 13. cxd4 {[%clk 0:02:55]}  Bb7 {[%clk 0:02:35]} 14. b4 {[%clk 0:02:55]}  Rac8 {[%clk 0:02:00]} 15. Bb1 {[%clk 0:02:28]}  Qc3 {[%clk 0:01:46]} 16. bxa5 {[%clk 0:02:19]}  Qxa1 {[%clk 0:01:46]} 17. Nb3 {[%clk 0:02:07]}  Qxb1 {[%clk 0:01:38]} 18. dxe5 {[%clk 0:01:56]}  dxe5 {[%clk 0:01:37]} 19. Nxe5 {[%clk 0:01:56]}  Qxa2 {[%clk 0:01:29]} 20. Nd4 {[%clk 0:01:30]}  Rfd8 {[%clk 0:01:22]} 21. Be3 {[%clk 0:01:29]}  Nxe4 {[%clk 0:01:18]} 22. Qg4 {[%clk 0:01:25]}  Nf6 {[%clk 0:01:07]} 23. Qg3 {[%clk 0:01:18]}  Bd6 {[%clk 0:00:58]} 24. Nf5 {[%clk 0:01:15]}  Nh5 {[%clk 0:00:51]} 25. Nh6+ {[%clk 0:00:38]}  Kf8 {[%clk 0:00:45]} 26. Qg5 {[%clk 0:00:37]}  Qd5 {[%clk 0:00:14]} 27. Nhxf7 {[%clk 0:00:22]}  Bxe5 {[%clk 0:00:12]} 28. Nxe5 {[%clk 0:00:10]}  Qxg2+ {[%clk 0:00:11]} 29. Qxg2 {[%clk 0:00:09]}  Bxg2 {[%clk 0:00:12]} 30. Kxg2 {[%clk 0:00:10]}  Nf6 {[%clk 0:00:12]} 31. Bb6 {[%clk 0:00:09]}  Rd5 {[%clk 0:00:11]} 32. Nf3 {[%clk 0:00:09]}  Rc2 {[%clk 0:00:09]} 33. Re6 {[%clk 0:00:09]}  h6 {[%clk 0:00:07]} 34. Ne1 {[%clk 0:00:07]}  Ra2 {[%clk 0:00:06]} 35. Rc6 {[%clk 0:00:07]}  b4 {[%clk 0:00:06]} 36. Bc5+ {[%clk 0:00:06]}  Rxc5 {[%clk 0:00:04]} 37. Rxc5 {[%clk 0:00:06]}  Rxf2+ {[%clk 0:00:03]} 38. Kg1 {[%clk 0:00:04]}  Re2 {[%clk 0:00:02]} 39. Nd3 {[%clk 0:00:03]}  b3 {[%clk 0:00:02]} 40. Rc6 {[%clk 0:00:03]}  Rd2 {[%clk 0:00:01]} 0-1


[Site "https://www.chess.com"]

[Event "Titled Tuesday Blitz August 3 2021"]
[White "Iskusnyh, Sergei"]
[Black "Obolentseva, Alexandra"]
[WhiteFideId "4120027"]
[BlackFideId "24153648"]
[WhiteElo "2492"]
[BlackElo "2113"]
[Result "1-0"]
[Round "11"]
[TimeControl "180+1"]
[Date "2021.08.03"]
[WhiteClock "0:00:58"]
[BlackClock "0:00:19"]

1. d4 {[%clk 0:03:00]}  Nf6 {[%clk 0:02:59]} 2. c4 {[%clk 0:03:01]}  g6 {[%clk 0:02:59]} 3. g3 {[%clk 0:03:01]}  Bg7 {[%clk 0:02:59]} 4. Bg2 {[%clk 0:03:01]}  O-O {[%clk 0:03:00]} 5. Nc3 {[%clk 0:03:01]}  d6 {[%clk 0:03:00]} 6. Nf3 {[%clk 0:03:01]}  c5 {[%clk 0:03:01]} 7. dxc5 {[%clk 0:02:53]}  dxc5 {[%clk 0:03:02]} 8. Be3 {[%clk 0:02:52]}  Nbd7 {[%clk 0:02:55]} 9. O-O {[%clk 0:02:50]}  Qb6 {[%clk 0:02:39]} 10. Qb3 {[%clk 0:02:40]}  Ng4 {[%clk 0:02:28]} 11. Bf4 {[%clk 0:02:30]}  Qxb3 {[%clk 0:01:27]} 12. axb3 {[%clk 0:02:28]}  e6 {[%clk 0:01:25]} 13. Rfd1 {[%clk 0:02:23]}  Nge5 {[%clk 0:01:23]} 14. Rd2 {[%clk 0:02:02]}  Nxf3+ {[%clk 0:01:18]} 15. Bxf3 {[%clk 0:02:02]}  Be5 {[%clk 0:01:12]} 16. Be3 {[%clk 0:01:45]}  f5 {[%clk 0:01:00]} 17. Nb5 {[%clk 0:01:31]}  a6 {[%clk 0:00:54]} 18. Nd6 {[%clk 0:01:28]}  Nf6 {[%clk 0:00:49]} 19. Bxc5 {[%clk 0:01:18]}  Rd8 {[%clk 0:00:43]} 20. Rad1 {[%clk 0:01:16]}  Bxd6 {[%clk 0:00:31]} 21. Rxd6 {[%clk 0:01:12]}  Rxd6 {[%clk 0:00:31]} 22. Rxd6 {[%clk 0:01:12]}  Kf7 {[%clk 0:00:21]} 23. Rd8 {[%clk 0:01:08]}  Nd7 {[%clk 0:00:19]} 24. Bxb7 {[%clk 0:00:58]} 1-0


[Site "https://www.chess.com"]